Cogmind - Beta 14 X2 @@@ ROGUE MODE // 2024.08.03 @ 11:17:06 Player: Olafz Result: Destroyed by G-50 Soldier with Heavy Laser Performance ------------- Evolutions (3) 1500 Regions Visited (6) 1200 Robots Destroyed (0) 0 Value Destroyed (0) 0 Prototype IDs (3) 60 Alien Tech Used (0) 0 Bonus (834) 834 TOTAL SCORE: 3594 Bonus ------- Pacifist 834 Cogmind --------- Core Integrity 0/700 Matter 279/300 Energy 98/100 System Corruption 6% Temperature Cool (9) Movement Core (50) Location -7/Storage Parts ------- > --- POWER (1) -------- (None) > --- PROPULSION (2) --- (None) > --- UTILITY (8) ------ Signal Interpreter Advanced Terrain Scan Processor Utility Shielding System Shield System Shield > --- WEAPON (2) ------- (None) > --- INVENTORY (5) ---- F-cell Engine Cold Fusion Reactor Advanced ECM Suite Utility Shielding Katana Peak State ------------ > --- POWER ------------ Heavy Deuterium Engine > --- PROPULSION ------- Cesium-ion Thruster Cesium-ion Thruster > --- UTILITY ---------- Signal Interpreter Improved Terrain Scanner Improved Terrain Scan Processor Advanced Terrain Scan Processor System Shield System Shield System Shield > --- WEAPON ----------- (None) > --- INVENTORY -------- Deuterium Engine System Shield System Shield Katana [Rating: 32] Favorites ----------- Power Deuterium Engine Engine Deuterium Engine Reactor Cold Fusion Reactor Propulsion Cesium-ion Thruster Leg Aluminum Leg Hover Unit Hover Unit Flight Unit Cesium-ion Thruster Utility System Shield Device Improved Terrain Scanner Storage Small Storage Unit Processor Signal Interpreter Hackware System Shield Protection Utility Shielding Weapon Assault Rifle Energy Gun Medium Laser Ballistic Gun Assault Rifle Slashing Weapon Katana Build | -11 -10 -10 -9 -8 -7 -7 ------- Run | Yrd Mat Min Mat Mat Fac Sto Slots Evolved 6 | . . . 2 2 2 . Power . | . . . . . . . Propulsion . | . . . . . . . Utility 6 | . . . 2 2 2 . Weapon . | . . . . . . . Parts Attached 26 | . . . . 13 4 9 Power 5 | . . . . 1 2 2 Engine 4 | . . . . 1 2 1 Core . | . . . . . . . Reactor 1 | . . . . . . 1 Propulsion 3 | . . . . 2 . 1 Treads . | . . . . . . . Leg . | . . . . . . . Wheel . | . . . . . . . Hover 1 | . . . . . . 1 Flight 2 | . . . . 2 . . Utility 13 | . . . . 8 2 3 Device 2 | . . . . 1 1 . Storage . | . . . . . . . Processor 3 | . . . . 2 1 . Hackware 7 | . . . . 5 . 2 Protection 1 | . . . . . . 1 Artifact . | . . . . . . . Weapon 5 | . . . . 2 . 3 Energy Gun . | . . . . . . . Energy Cannon . | . . . . . . . Ballistic Gun . | . . . . . . . Ballistic Cannon . | . . . . . . . Launcher . | . . . . . . . Special Weapon . | . . . . . . . Impact Weapon . | . . . . . . . Slashing Weapon 5 | . . . . 2 . 3 Piercing Weapon . | . . . . . . . Special Melee Weapon . | . . . . . . . Unidentified Prototypes 3 | . . . . . 1 2 Parts Lost 14 | . . . 3 1 5 5 Power 2 | . . . 1 . 1 . Propulsion 5 | . . . 2 . 1 2 Utility 7 | . . . . 1 3 3 Weapon . | . . . . . . . Highest Loss Streak 5 | . . . 3 1 5 5 To Critical Strikes . | . . . . . . . Average Slot Usage (%) 62 | . 85 80 24 61 63 59 Engine 6 | . 14 14 5 7 5 . Leg 7 | . 28 28 12 . . . Flight 6 | . . . . 14 14 3 Device 4 | . . . . 9 5 6 Storage 4 | . 14 14 6 . . . Processor 11 | . . . . 9 18 21 Hackware 12 | . . . . 20 19 18 Protection 1 | . . . . . . 4 Energy Gun 2 | . 14 11 . . . . Ballistic Gun 2 | . 14 11 . . . . Naked Turns 32 | . . . 27 5 . . Heaviest Build 14 | 14 14 14 10 12 10 14 Greatest Support 20 | 20 20 20 20 10 10 5 Greatest Overweight (x) 2 | . . . 1 1 . 2 Average Overweight (x) . | . . . . . . . Largest Inventory Capacity 8 | . 8 8 8 5 5 5 Average Capacity 5 | . 8 8 6 5 5 5 Most Carried 8 | . 6 8 8 5 5 5 Average Carried 4 | . 6 6 6 3 3 4 Final Capacity 8 | 8 8 8 5 5 5 5 Final Carried 8 | 6 6 8 5 3 4 5 Class Distribution -------------------- 41% | Mutant 37% | Hacker-Sprinter 19% | Hacker-Mutant Dominant Class ---------------- Mutant | -10/Materials Mutant | -10/Mines Mutant | -9/Materials Hacker-Sprinter | -8/Materials Hacker-Sprinter | -7/Factory Hacker-Mutant | -7/Storage Resources | -11 -10 -10 -9 -8 -7 -7 ----------- Run | Yrd Mat Min Mat Mat Fac Sto Matter Collected 393 | 200 . . . . 127 66 Remotely . | . . . . . . . Salvage Created . | . . . . . . . Parts . | . . . . . . . Haulers Intercepted . | . . . . . . . Recyclers Shooed . | . . . . . . . Parts Field Recycled . | . . . . . . . Retrieved Matter . | . . . . . . . Parts Self-Destructed . | . . . . . . . Prevented . | . . . . . . . Kills | -11 -10 -10 -9 -8 -7 -7 ------- Run | Yrd Mat Min Mat Mat Fac Sto Combat Hostiles Destroyed . | . . . . . . . Classes Destroyed . | . . . . . . . Best Kill Streak . | . . . . . . . Combat Bots Only . | . . . . . . . Max Kills in Single Turn . | . . . . . . . Gunslinging . | . . . . . . . Exploded . | . . . . . . . Melee . | . . . . . . . Uniques/NPCs Destroyed . | . . . . . . . Combat | -11 -10 -10 -9 -8 -7 -7 -------- Run | Yrd Mat Min Mat Mat Fac Sto Hostile Shots Fired 338 | . 3 65 76 25 50 119 Missed 175 | . 1 28 45 17 28 56 Damage Taken 1777 | . 22 298 323 118 316 700 Core 1014 | . . 77 193 44 146 554 Absorbed by Shields . | . . . . . . . Redirected to Shielding 13 | . . . . . . 13 Core Remaining (%) 78 | 100 . 69 51 92 . . Volleys Fired . | . . . . . . . Largest . | . . . . . . . Hottest . | . . . . . . . Shots Fired . | . . . . . . . Gun . | . . . . . . . Cannon . | . . . . . . . Launcher . | . . . . . . . Special . | . . . . . . . Kinetic . | . . . . . . . Thermal . | . . . . . . . Explosive . | . . . . . . . Electromagnetic . | . . . . . . . Robot Hit Streak . | . . . . . . . Robot Miss Streak . | . . . . . . . Penetration Max . | . . . . . . . Secondary Targets . | . . . . . . . Shots Hit Robots . | . . . . . . . Core Hits . | . . . . . . . Critical Kills . | . . . . . . . Critical Parts Destroyed . | . . . . . . . Critical Strikes . | . . . . . . . Melee Attacks 6 | . . . . 3 . 3 Impact . | . . . . . . . Slashing 6 | . . . . 3 . 3 Piercing . | . . . . . . . Sneak Attacks . | . . . . . . . Combat Hostiles . | . . . . . . . Follow-up Attacks . | . . . . . . . Damage Inflicted 25 | . . 9 . . . 16 Guns . | . . . . . . . Cannons . | . . . . . . . Explosions . | . . . . . . . Melee . | . . . . . . . Ramming 25 | . . 9 . . . 16 Kinetic . | . . . . . . . Thermal . | . . . . . . . Explosive . | . . . . . . . Electromagnetic . | . . . . . . . Impact . | . . . . . . . Slashing . | . . . . . . . Piercing . | . . . . . . . Highest Corruption 6 | . . . . . 1 6 Average Corruption 1 | . . . . . 1 1 Corruption Purged . | . . . . . . . Corruption Blocked . | . . . . . . . Effects 4 | . . . . . 2 2 Message Errors 1 | . . . . . 1 . Matter Fused 2 | . . . . . 1 1 Energy Discharges 1 | . . . . . . 1 Overload Shots . | . . . . . . . Overflow Damage . | . . . . . . . Projectiles . | . . . . . . . Explosions . | . . . . . . . Melee . | . . . . . . . Knockbacks 1 | . . . . . . 1 Impact 1 | . . . . . . 1 Kinetic . | . . . . . . . Secondary . | . . . . . . . Self-Inflicted Damage 7 | . . . . . . 7 Shots . | . . . . . . . Rammed 3 | . . . . . . 3 Targets Rammed 7 | . . 4 . . . 3 Kicked 4 | . . 4 . . . . Crushed . | . . . . . . . Highest Temperature 16 | . . . . . 16 . Average Temperature 11 | . . . . . 11 . Received Heat Transfer 546 | . 12 . 102 45 93 294 Siege Activations . | . . . . . . . Robots Corrupted . | . . . . . . . Combat Hostiles . | . . . . . . . Parts Fried . | . . . . . . . Impact Corruptions . | . . . . . . . Robots Melted . | . . . . . . . Combat Hostiles . | . . . . . . . Parts Melted . | . . . . . . . Heat Transferred . | . . . . . . . Parts Sabotaged . | . . . . . . . Parts Stolen . | . . . . . . . Parts Stripped . | . . . . . . . Power Chain Reactions . | . . . . . . . Alert | -11 -10 -10 -9 -8 -7 -7 ------- Run | Yrd Mat Min Mat Mat Fac Sto Peak Influence 280 | . 15 170 171 245 211 280 Initial 111 | . . 5 66 72 111 95 Average 126 | . 6 82 112 155 156 146 Maximum Alert Level 1 | . . . . 1 1 1 Low Security (%) 84 | . 100 100 100 66 92 72 Level 1 15 | . . . . 33 7 27 Level 2 . | . . . . . . . Level 3 . | . . . . . . . Level 4 . | . . . . . . . Level 5 . | . . . . . . . High Security . | . . . . . . . Max Security . | . . . . . . . Squads Dispatched 10 | . 1 . 1 1 3 4 Investigation 5 | . . . 1 . 1 3 Extermination . | . . . . . . . Reinforcement 5 | . 1 . . 1 2 1 Assault . | . . . . . . . Garrison . | . . . . . . . Intercept . | . . . . . . . Searches Triggered . | . . . . . . . Construction Impeded . | . . . . . . . Haulers Reinforced . | . . . . . . . Active Scanning Responses . | . . . . . . . Cargo Convoy Interrupts . | . . . . . . . Stealth | -11 -10 -10 -9 -8 -7 -7 --------- Run | Yrd Mat Min Mat Mat Fac Sto Distress Signals 6 | . . . 1 2 1 2 Communications Jammed . | . . . . . . . Distress Signals . | . . . . . . . Times Spotted 79 | . 3 11 11 12 15 27 Peak Tracking Total 23 | . 2 4 10 8 11 23 Tactical Retreats 15 | . . 5 2 2 2 4 Traps | -11 -10 -10 -9 -8 -7 -7 ------- Run | Yrd Mat Min Mat Mat Fac Sto Traps Triggered 4 | . . . 1 . 1 2 Indirectly . | . . . . . . . Trap Hack Attempts . | . . . . . . . Triggered . | . . . . . . . Disarmed . | . . . . . . . Reprogrammed . | . . . . . . . Reused . | . . . . . . . Traps Extracted . | . . . . . . . Installed . | . . . . . . . Triggered . | . . . . . . . Machines | -11 -10 -10 -9 -8 -7 -7 ---------- Run | Yrd Mat Min Mat Mat Fac Sto Machines Disabled . | . . . . . . . Max in Single Turn . | . . . . . . . Machines Repaired . | . . . . . . . Machines Dismantled . | . . . . . . . Machines Sabotaged . | . . . . . . . Overloaded Fab Kills . | . . . . . . . Hacking | -11 -10 -10 -9 -8 -7 -7 --------- Run | Yrd Mat Min Mat Mat Fac Sto Machines Accessed 7 | . . . . . 3 4 Terminals 7 | . . . . . 3 4 Fabricators . | . . . . . . . Repair Stations . | . . . . . . . Recycling Units . | . . . . . . . Scanalyzers . | . . . . . . . Garrison Access . | . . . . . . . Total Hacks 10 | . . . . . 4 6 Successful 6 | . . . . . 2 4 Failed 4 | . . . . . 2 2 Catastrophic 1 | . . . . . 1 . Database Lockouts . | . . . . . . . Manual 6 | . . . . . 4 2 Terminals 10 | . . . . . 4 6 Fabricators . | . . . . . . . Repair Stations . | . . . . . . . Recycling Units . | . . . . . . . Scanalyzers . | . . . . . . . Garrison Access . | . . . . . . . Terminal Hacks 5 | . . . . . 1 4 Open Door 3 | . . . . . . 3 Alert Level 1 | . . . . . . 1 Recall Investigation 1 | . . . . . 1 . Fabricator Hacks . | . . . . . . . Repair Station Hacks . | . . . . . . . Recycling Unit Hacks . | . . . . . . . Scanalyzer . | . . . . . . . Garrison Access Hacks . | . . . . . . . Unauthorized Hacks 1 | . . . . . 1 . Terminals 1 | . . . . . 1 . Botnet 1 | . . . . . 1 . Fabricators . | . . . . . . . Repair Stations . | . . . . . . . Recycling Units . | . . . . . . . Scanalyzers . | . . . . . . . Garrison Access . | . . . . . . . Data Cores Recovered . | . . . . . . . Used . | . . . . . . . Hacking Detections 3 | . . . . . 2 1 Full Trace Events 1 | . . . . . . 1 Feedback Events . | . . . . . . . Feedback Blocked . | . . . . . . . Robot Schematics Acquired . | . . . . . . . Robots Built . | . . . . . . . Authchips . | . . . . . . . Time . | . . . . . . . Total Robot Build Rating . | . . . . . . . Part Schematics Acquired . | . . . . . . . Parts Built . | . . . . . . . Authchips . | . . . . . . . Time . | . . . . . . . Total Part Build Rating . | . . . . . . . Parts Repaired . | . . . . . . . Time . | . . . . . . . Parts Recycled . | . . . . . . . Recycled Matter . | . . . . . . . Retrieved Matter . | . . . . . . . Retrieved Components . | . . . . . . . Parts Scanalyzed . | . . . . . . . Part Schematics Acquired . | . . . . . . . Parts Damaged . | . . . . . . . Bothacking | -11 -10 -10 -9 -8 -7 -7 ------------ Run | Yrd Mat Min Mat Mat Fac Sto Used RIF Installer . | . . . . . . . Robots Hacked . | . . . . . . . Non-combat . | . . . . . . . Combat . | . . . . . . . Robot Hacks Applied . | . . . . . . . Relay Couplers Released . | . . . . . . . Fabnet Peak Effective % . | . . . . . . . Robots Rewired . | . . . . . . . Allies Hacked . | . . . . . . . Hacks Repelled . | . . . . . . . Allies | -11 -10 -10 -9 -8 -7 -7 -------- Run | Yrd Mat Min Mat Mat Fac Sto Total Allies . | . . . . . . . Largest Group . | . . . . . . . Highest-Rated Group . | . . . . . . . Highest-Rated Ally . | . . . . . . . Total Orders . | . . . . . . . Ally Attacks . | . . . . . . . Total Damage . | . . . . . . . Kills . | . . . . . . . Allies Corrupted . | . . . . . . . Allies Melted . | . . . . . . . Intel | -11 -10 -10 -9 -8 -7 -7 ------- Run | Yrd Mat Min Mat Mat Fac Sto Robot Analysis Total . | . . . . . . . Derelict Logs Recovered 2 | . . 2 . . . . Drone Launches . | . . . . . . . Drone Recoveries . | . . . . . . . Exploration | -11 -10 -10 -9 -8 -7 -7 ------------- Run | Yrd Mat Min Mat Mat Fac Sto Turns Passed 732 | . 50 126 75 146 159 176 Spaces Moved 1323 | 1 42 101 93 314 467 305 Core 221 | . . . 54 52 . 115 Treads . | . . . . . . . Legs 183 | 1 42 101 39 . . . Wheels . | . . . . . . . Hover . | . . . . . . . Flight 919 | . . . . 262 467 190 Fastest Speed 32 | 120 120 120 50 32 32 35 Average Speed 49 | 120 120 120 79 36 32 47 Slowest Speed 195 | 120 120 120 120 112 35 195 Overloaded Moves . | . . . . . . . Propulsion Burnouts . | . . . . . . . Robots Hopped 19 | . . . . 11 8 . Cave-ins Triggered . | . . . . . . . Exploration Rate (%) 26 | 2 24 27 20 36 17 61 Regions Visited 6 Branch Regions 2 Pre-discovered Areas 1 | . . 1 . . . . Known Exits Taken 2 | . . . . 1 1 . Unknown Exits Taken 4 | 1 1 1 1 . . . Scrap Searched . | . . . . . . . Spaces Dug 6 | . . . . 3 . 3 Terrain Destroyed 6 | . . . . 3 . 3 Melee 6 | . . . . 3 . 3 Projectile . | . . . . . . . AOE . | . . . . . . . Terrain Rammed . | . . . . . . . Walls Destroyed . | . . . . . . . Machines Disabled . | . . . . . . . Actions | -11 -10 -10 -9 -8 -7 -7 --------- Run | Yrd Mat Min Mat Mat Fac Sto Total 1367 | . 41 106 93 329 466 332 Wait 5 | . . . . . . 5 Move 1279 | . 41 100 92 291 450 305 Hop 19 | . . . . 11 8 . Pick Up 6 | . . . . 3 1 2 Fast Attach 18 | . . . . 11 3 4 Attach 8 | . . . . 2 1 5 Detach 11 | . . 2 . 3 2 4 Swap . | . . . . . . . Drop 8 | . . . 1 5 1 1 Fire . | . . . . . . . Melee 6 | . . . . 3 . 3 Ram 3 | . . . . . . 3 Kick 4 | . . 4 . . . . Crush . | . . . . . . . Escape Stasis . | . . . . . . . Rewire . | . . . . . . . Trap . | . . . . . . . Miscellaneous . | . . . . . . . Route ------- -11/Scrapyard -10/Materials -10/Mines -9/Materials -8/Materials -7/Factory -7/Storage History --------- Turn | Location | Event 1 | -11/Scrapyard | Discovered new exit (range 0) 1 | -11/Scrapyard | Entered Materials 43 | -10/Materials | Discovered new exit (range 5) 51 | -10/Materials | Entered Mines 153 | -10/Mines | Learned 2 Materials zone layouts 172 | -10/Mines | Discovered new exit (range 5) 177 | -10/Mines | Entered Materials 177 | -9/Materials | Evolved 2 slots: Utility x2 244 | -9/Materials | Discovered new exit (range 16) 252 | -9/Materials | Entered another Materials area 252 | -8/Materials | Evolved 2 slots: Utility x2 255 | -8/Materials | Lost 3 parts (1p2n) 394 | -8/Materials | Discovered new exit (range 12) 398 | -8/Materials | Identified exit to Factory 398 | -8/Materials | Entered Factory 398 | -7/Factory | Evolved 2 slots: Utility x2 554 | -7/Factory | Discovered new exit (range 6) 557 | -7/Factory | Identified exit to Storage 557 | -7/Factory | Entered Storage 567 | -7/Storage | Lost 5 parts (1p1n3u) 689 | -7/Storage | Core integrity fell below 50% 725 | -7/Storage | Core integrity fell below 20% 733 | -7/Storage | Destroyed by G-50 Soldier with Heavy Laser Last Messages --------------- Imp. Terrain Scan Processor destroyed. U-05 Engineer builds a Door. W-25 Informer sends out distress signal. Triggered Alarm Trap. An alarm sounds. ALERT: Alarm triggered, dispatching investigation squad. U-05 Engineer lays Concrete. K-01 Serf collects debris. Triggered Alarm Trap. An alarm sounds. ALERT: Alarm triggered, dispatching investigation squad. U-05 Engineer lays Concrete. System Shield destroyed. Critical hit (Burn: +37). Slammed into G-47 Trooper. G-47 Trooper knocked back. ECM Suite destroyed. System corrupted by crushing effect (+5). Adv. Terrain Scan Processor broken. Destabilizing: Short circuit. Map ----- +----------------------------------------------------+ | " """ # """"" """ #??????????? | | # """"" """ =#??????????? | | ####### "Y" """"" #??????????? | | ????? """ #??????????? | | ????# #??????????? | | ????# #??????????? | | ????################ #??????????? | | ???????????????????# #########??????????? | | ???????????????????# #??????????????????? | | ???????????????????# #??????????????????? | | ???????????????????# #??????????????????? | | ???????????????????# #??????????????????? | | ??????????###??????# #??????????????????? | | ??????????# ##### #???? "????????????? | | ??????????# "T #??"" ""? ?????????? | | ??????????# "" # """ #???????? | | ##????????# ##### + #????????? | | !#?????######??????# # #????????? | | !#?????# ????# #?? #????????? | | !#?????# ??# #????######????????? | | ##????# # #??????????????????? | | T#????# + #??????????????????? | | ##????# # #??????????????????? | | ##?????# ??# ######?????????????? | | ???????# ????# #?????????????? | | ???????######??????# g@ #?????????????? | | ???????????????????###+## +?????????????? | | ????????????????????? !## #?????????????? | | ????????????????????? ## #?????????????? | | ???????????????????? ## T?????????????? | | ???????????????????? ## ##????????????? | | ??????????????????? #""""?????????????? | | ??????????????????? #?????????????????? | | ?????????????????? #?????????????????? | | ?????????????????? ??????????????????? | | #######?????????? ??????????????????? | | #####??????######??????????????????? | | ##### + #??????##??????????????????????? | | ????# #T###????## #####??????????????????? | | #???# ###??????# #??????????????????? | | #???# #????????# """ !#??????????????????? | | ##### ########## """ #??????????????????? | | + / """ #??????????????????? | | ################ #??????????????????? | | #??????????????# #??????????????????? | | #???????????????#######??????????????????? | | #????????????????????????????????????????? | | #????????????????????????????????????????? | | | | | +----------------------------------------------------+ Best States ------------- Heat Dissipation 34 Energy Generation 17 Energy Capacity 275 Matter Stores 300 Matter Capacity 300 Sight Range 16 Terrain Scan Range 16 Terrain Scan Density 310 ECM Strength 1 Utility Shielding 33 Evasion (%) 63 Defensive Hacking 40 Item Schematics ----------------- None Robot Schematics ------------------ None Fabricated ------------ Nothing Alien Tech Used ----------------- None Achievements -------------- None Challenges ------------ None Game ------ Seed AlloyCompactSuit Manual? 0 Play Time 00:19:31 Cumulative 163.0 hours Start 2024.08.03 @ 10:05:05 End 2024.08.03 @ 11:17:06 Sessions 3 Manual Loads 0 Difficulty Rogue Special Mode None Game No. 263 Rogue 261 Adventurer 2 Explorer 0 Win Type - Total 5 Types 4/0/0/1/0/0/0/0/0 Lore% 56 Gallery% 61 Achievement% 52 Wizard Run 0 Options --------- Layout 0 ASCII 0 Keyboard 1 Movement Numpad Keybinds 1 Fullscreen 2 Font 18/SmallcapsGlow Map View 76x50 Zoom Use 0% Tactical HUD 1 Map Filters NONE Filters NONE Steam 1 RUN: d0dbe585-7367-4a8d-a043-479d03c06886